fUSD/lending_fUSD_20250511
["ID","MTS","AMOUNT","RATE_DAILY","PERIOD"]
[360772476,1747006238250,-400.0,0.00014986,2]
[360772477,1747006238260,-400.0,0.00014986,2]
[360772478,1747006238270,-400.0,0.00014986,2]
[360772479,1747006238279,-400.0,0.00014986,2]
[360772480,1747006238289,-3283.78,0.00014986,2]
[360772481,1747006238299,-3283.78,0.00014986,2]
[360772482,1747006238308,-1835.83,0.00014986,2]
[360772483,1747006238318,-1835.83,0.00014986,2]
[360772484,1747006238327,-513.3,0.00014986,2]
[360772485,1747006238338,-513.3,0.00014986,2]
[360772486,1747006238347,-471.03,0.00014986,2]
[360772487,1747006238358,-471.03,0.00014986,2]
[360772488,1747006238367,-400.0,0.00014986,2]
[360772489,1747006238377,-400.0,0.00014986,2]
[360772490,1747006238394,-941.82,0.00014986,2]
[360772491,1747006238405,-941.82,0.00014986,2]
[360772492,1747006238414,-4301.46,0.00014986,2]
[360772494,1747006238424,-4301.46,0.00014986,2]
[360772496,1747006238435,-400.0,0.00014986,2]
[360772498,1747006238445,-400.0,0.00014986,2]
[360772500,1747006238455,-489.08994635,0.00014986,2]
[360772502,1747006238464,-400.0,0.00014986,2]
[360772504,1747006238473,-400.0,0.00014986,2]
[360772506,1747006238483,-949.73,0.00014986,2]
[360772507,1747006238493,-949.73,0.00014986,2]
[360772509,1747006238502,-1803.94625413,0.00014986,2]
[360772512,1747006238515,-282.55999991,0.00014986,2]
[360772515,1747006238538,-878.24303941,0.00014986,2]
[360772519,1747006238570,-108.23070655,0.00014986,2]
[360772521,1747006238579,-3072.98,0.00014986,2]
[360772523,1747006238589,-450.0,0.00014986,2]
[360772525,1747006238599,-3459.03,0.00014986,2]
[360772526,1747006238609,-3459.03,0.00014986,2]
[360772528,1747006238619,-400.0,0.00014986,2]
[360772530,1747006238629,-400.0,0.00014986,2]
[360772532,1747006238639,-400.0,0.00014986,2]
[360772534,1747006238649,-400.0,0.00014986,2]
[360772536,1747006238658,-400.0,0.00014986,2]
[360772538,1747006238668,-400.0,0.00014986,2]
[360772540,1747006238677,-400.0,0.00014986,2]
[360772542,1747006238688,-400.0,0.00014986,2]
[360772544,1747006238697,-2106.49,0.00014986,2]
[360772545,1747006238707,-2106.49,0.00014986,2]
[360772547,1747006238716,-400.0,0.00014986,2]
[360772549,1747006238726,-400.0,0.00014986,2]
[360772551,1747006238736,-1593.2,0.00014986,2]
[360772553,1747006238746,-1593.2,0.00014986,2]
[360772555,1747006238756,-570.65,0.00014986,2]
[360772556,1747006238765,-570.65,0.00014986,2]
[360772558,1747006238775,-400.0,0.00014986,2]
[360772560,1747006238784,-400.0,0.00014986,2]
[360772561,1747006238794,-400.0,0.00014986,2]
[360772562,1747006238803,-400.0,0.00014986,2]
[360772563,1747006238813,-262.25377812,0.00014986,2]
[360772564,1747006238823,-2481.64,0.00014986,2]
[360772565,1747006238832,-986.11,0.00014986,2]
[360772566,1747006238842,-2481.64,0.00014986,2]
[360772567,1747006238851,-986.11,0.00014986,2]
[360772568,1747006238861,-353.89732197,0.00014986,2]
[360772569,1747006238873,-46.10267803,0.00014986,2]
[360772570,1747006238883,-400.0,0.00014986,2]
[360772571,1747006238893,-531.34531188,0.00014986,2]
[360772572,1747006238903,-400.0,0.00014986,2]
[360772573,1747006238912,-691.73,0.00014986,2]
[360772574,1747006238922,-131.0370157,0.00014986,2]
[360772576,1747006240488,-300.0,0.00014768,2]
[360772577,1747006240498,-542.82882669,0.00014887,2]
[360772578,1747006240507,-190.78567091,0.00014899,2]
[360772579,1747006240516,-122.5855024,0.00014986,2]
[360772580,1747006240527,-438.1074819,0.00014986,2]
[360772581,1747006240536,-400.0,0.00014986,2]
[360772582,1747006240546,-400.0,0.00014986,2]
[360772583,1747006240555,-1804.78,0.00014986,2]
[360772584,1747006240564,-400.0,0.00014986,2]
[360772585,1747006240573,-1804.78,0.00014986,2]
[360772586,1747006240582,-400.0,0.00014986,2]
[360772587,1747006240591,-400.0,0.00014986,2]
[360772588,1747006240600,-400.0,0.00014986,2]
[360772589,1747006240609,-400.0,0.00014986,2]
[360772590,1747006240618,-400.0,0.00014986,2]
[360772591,1747006240627,-761.56,0.00014986,2]
[360772592,1747006240636,-761.56,0.00014986,2]
[360772593,1747006240645,-2730.66,0.00014986,2]
[360772594,1747006240654,-2730.66,0.00014986,2]
[360772595,1747006240663,-290.60887588,0.00014986,2]
[360772596,1747006240673,-1427.34,0.00014986,2]
[360772597,1747006240682,-1427.34,0.00014986,2]
[360772598,1747006240692,-400.0,0.00014986,2]
[360772599,1747006240701,-400.0,0.00014986,2]
[360772601,1747006240711,-400.0,0.00014986,2]
[360772602,1747006240719,-400.0,0.00014986,2]
[360772604,1747006240729,-400.0,0.00014986,2]
[360772605,1747006240738,-4268.16,0.00014986,2]
[360772606,1747006240747,-400.0,0.00014986,2]
[360772607,1747006240757,-1364.98478894,0.00014986,2]
[360772608,1747006240769,-2903.17521106,0.00014986,2]
[360772609,1747006240778,-400.0,0.00014986,2]
[360772610,1747006240788,-400.0,0.00014986,2]
[360772611,1747006240797,-675.5638105,0.00014986,2]
[360772613,1747006240809,-858.0261895,0.00014986,2]
[360772615,1747006240818,-1533.59,0.00014986,2]
[360772617,1747006240827,-400.0,0.00014986,2]
[360772619,1747006240837,-400.0,0.00014986,2]
[360772621,1747006240846,-400.0,0.00014986,2]
[360772623,1747006240856,-91.2657459,0.00014986,2]
[360772625,1747006240867,-308.7342541,0.00014986,2]
[360772627,1747006240877,-929.13,0.00014986,2]
[360772629,1747006240887,-929.13,0.00014986,2]
[360772631,1747006240897,-400.0,0.00014986,2]
[360772633,1747006240906,-400.0,0.00014986,2]
[360772635,1747006240916,-400.0,0.00014986,2]
[360772637,1747006240925,-1910.32,0.00014986,2]
[360772639,1747006240935,-1558.54,0.00014986,2]
[360772641,1747006240946,-1558.54,0.00014986,2]
[360772643,1747006240955,-400.0,0.00014986,2]
[360772645,1747006240964,-400.0,0.00014986,2]
[360772647,1747006240975,-1910.32,0.00014986,2]
[360772649,1747006240984,-400.0,0.00014986,2]
[360772650,1747006240994,-400.0,0.00014986,2]
[360772652,1747006241003,-400.0,0.00014986,2]
[360772654,1747006241012,-506.40033663,0.00014986,2]
[360772656,1747006241023,-3364.96,0.00014986,2]
[360772658,1747006241032,-3364.96,0.00014986,2]
[360772660,1747006241042,-486.03,0.00014986,2]
[360772662,1747006241054,-349.49790957,0.00014986,2]
[360772665,1747006241074,-50.50209043,0.00014986,2]
[360772667,1747006241083,-486.03,0.00014986,2]
[360772669,1747006241092,-400.0,0.00014986,2]
[360772671,1747006241102,-400.0,0.00014986,2]
[360772673,1747006241111,-400.0,0.00014986,2]
[360772675,1747006241120,-212.84043537,0.00014986,2]
[360772677,1747006241130,-400.0,0.00014986,2]
[360772679,1747006241140,-508.9945415,0.00014986,2]
[360772681,1747006241150,-400.0,0.00014986,2]
[360772683,1747006241160,-400.0,0.00014986,2]
[360772685,1747006241169,-400.0,0.00014986,2]
[360772687,1747006241178,-1508.16,0.00014986,2]
[360772689,1747006241187,-1508.16,0.00014986,2]
[360772691,1747006241196,-400.0,0.00014986,2]
[360772693,1747006241206,-400.0,0.00014986,2]
[360772695,1747006241215,-300.0,0.00014986,2]
[360772697,1747006241224,-250.18007473,0.00014987,2]
[360772699,1747006241234,-324.57324155,0.00014987,2]
[360772701,1747006241243,-275.88086643,0.00014987,2]
[360772703,1747006241255,-13792.92332109,0.00014987,2]
[360772706,1747006241266,-3071.32839809,0.00014987,2]
[360772933,1747006243376,-155.87508114,0.00014978,2]
[360772935,1747006243386,-403.61604175,0.00014986,2]
[360772937,1747006243395,-400.0,0.00014986,2]
[360772939,1747006243404,-782.49026319,0.00014987,2]
[360772943,1747006243472,-522.60070961,0.00014986,2]
[360772944,1747006243482,-400.0,0.00014986,2]
[360772945,1747006243491,-402.70138768,0.00014986,2]
[360772946,1747006243500,-472.80471386,0.00014987,2]
[360772947,1747006243511,-475.47215707,0.00014987,2]
[360772948,1747006243522,-873.04153788,0.00014987,2]
[360772949,1747006243534,-540.07934891,0.00014987,2]
[360772950,1747006243564,-400.0,0.00014986,2]
[360772952,1747006243573,-629345.78959552,0.00014987,2]
[360772954,1747006243583,-300.0,0.00014987,2]
[360772956,1747006243592,-400.0,0.00014987,2]
[360772958,1747006243601,-500.0,0.00014987,2]
[360772960,1747006243610,-1261.44,0.00014987,2]
[360772962,1747006243619,-1261.44,0.00014987,2]
[360772964,1747006243628,-1261.44,0.00014987,2]
[360772966,1747006243637,-400.0,0.00014987,2]
[360772968,1747006243646,-400.0,0.00014987,2]
[360772970,1747006243656,-196.31174196,0.00014987,2]
[360772972,1747006243665,-477.5,0.00014987,2]
[360772974,1747006243674,-477.5,0.00014987,2]
[360772976,1747006243683,-477.5,0.00014987,2]
[360772978,1747006243696,-400.0,0.00014987,2]
[360772979,1747006243705,-345.06608791,0.00014987,2]
[360772981,1747006243715,-400.0,0.00014987,2]
[360772983,1747006243724,-169.49685328,0.00014987,2]
[360772985,1747006243734,-400.0,0.00014987,2]
[360772987,1747006243743,-400.0,0.00014987,2]
[360772989,1747006243752,-400.0,0.00014987,2]
[360772991,1747006243762,-400.0,0.00014987,2]
[360772993,1747006243771,-200.0,0.00014987,2]
[360772995,1747006243781,-400.0,0.00014987,2]
[360772997,1747006243790,-3613.9,0.00014987,2]
[360772999,1747006243800,-3613.9,0.00014987,2]
[360773001,1747006243810,-826.12,0.00014987,2]
[360773003,1747006243820,-400.0,0.00014987,2]
[360773005,1747006243829,-400.0,0.00014987,2]
[360773007,1747006243839,-400.0,0.00014987,2]
[360773009,1747006243848,-400.0,0.00014987,2]
[360773011,1747006243857,-230.09633251,0.00014987,2]
[360773013,1747006243867,-400.0,0.00014987,2]
[360773015,1747006243876,-400.0,0.00014987,2]
[360773017,1747006243886,-400.0,0.00014987,2]
[360773019,1747006243895,-400.0,0.00014987,2]
[360773021,1747006243905,-400.0,0.00014987,2]
[360773023,1747006243914,-1601.35,0.00014987,2]
[360773025,1747006243924,-400.0,0.00014987,2]
[360773027,1747006243933,-713.2,0.00014987,2]
[360773029,1747006243944,-713.2,0.00014987,2]
[360773031,1747006243954,-713.2,0.00014987,2]
[360773033,1747006243963,-400.0,0.00014987,2]
[360773035,1747006243976,-400.0,0.00014987,2]
[360773037,1747006243986,-973.92,0.00014987,2]
[360773040,1747006243996,-973.92,0.00014987,2]
[360773042,1747006244006,-973.92,0.00014987,2]
[360773044,1747006244015,-402.78628351,0.00014987,2]
[360773046,1747006244026,-400.0,0.00014987,2]
[360773047,1747006244036,-1410.43,0.00014987,2]
[360773049,1747006244047,-878.44,0.00014987,2]
[360773052,1747006244058,-400.0,0.00014987,2]
[360773053,1747006244067,-635.68,0.00014987,2]
[360773055,1747006244077,-635.68,0.00014987,2]
[360773057,1747006244086,-635.68,0.00014987,2]
[360773059,1747006244096,-400.0,0.00014987,2]
[360773061,1747006244105,-479.58,0.00014987,2]
[360773063,1747006244114,-479.58,0.00014987,2]
[360773065,1747006244123,-479.58,0.00014987,2]
[360773067,1747006244135,-1902.41,0.00014987,2]
[360773070,1747006244144,-400.0,0.00014987,2]
[360773071,1747006244154,-400.0,0.00014987,2]
[360773074,1747006244163,-400.0,0.00014987,2]
[360773075,1747006244172,-213.08505889,0.00014987,2]
[360773077,1747006244182,-764.22,0.00014987,2]
[360773079,1747006244192,-958.02,0.00014987,2]
[360773081,1747006244201,-958.02,0.00014987,2]
[360773084,1747006244211,-400.0,0.00014987,2]
[360773085,1747006244220,-400.0,0.00014987,2]
[360773087,1747006244230,-301.01925369,0.00014987,2]
[360773089,1747006244240,-400.0,0.00014987,2]
[360773091,1747006244248,-400.0,0.00014987,2]
[360773093,1747006244257,-454.66696612,0.00014987,2]
[360773095,1747006244267,-724.18,0.00014987,2]
[360773097,1747006244276,-400.0,0.00014987,2]
[360773099,1747006244286,-724.18,0.00014987,2]
[360773101,1747006244295,-724.18,0.00014987,2]
[360773103,1747006244305,-165.51693641,0.00014987,2]
[360773105,1747006244314,-400.0,0.00014987,2]
[360773107,1747006244324,-533.48,0.00014987,2]
[360773109,1747006244335,-400.0,0.00014987,2]
[360773111,1747006244344,-235.45125041,0.00014987,2]
[360773113,1747006244353,-400.0,0.00014987,2]
[360773115,1747006244362,-307.20343804,0.00014987,2]
[360773117,1747006244371,-400.0,0.00014987,2]
[360773119,1747006244381,-2162.29,0.00014987,2]
[360773121,1747006244390,-2162.29,0.00014987,2]
[360773123,1747006244400,-2162.29,0.00014987,2]
[360773125,1747006244409,-876.14,0.00014987,2]
[360773127,1747006244419,-876.14,0.00014987,2]
[360773129,1747006244429,-856.58,0.00014987,2]
[360773131,1747006244438,-400.0,0.00014987,2]
[360773133,1747006244450,-400.0,0.00014987,2]
[360773135,1747006244459,-406.01588332,0.00014987,2]
[360773137,1747006244469,-801.82,0.00014987,2]
[360773139,1747006244478,-400.0,0.00014987,2]
[360773141,1747006244488,-5311.91,0.00014987,2]
[360773143,1747006244497,-5311.91,0.00014987,2]
[360773145,1747006244506,-400.0,0.00014987,2]
[360773147,1747006244516,-400.0,0.00014987,2]
[360773149,1747006244526,-400.0,0.00014987,2]
[360773151,1747006244536,-1297.16,0.00014987,2]
[360773153,1747006244545,-534.21280621,0.00014987,2]
[360773154,1747006244554,-1297.16,0.00014987,2]
[360773155,1747006244563,-1297.16,0.00014987,2]
[360773156,1747006244572,-401.50178895,0.00014987,2]
[360773157,1747006244582,-400.0,0.00014987,2]
[360773158,1747006244591,-400.0,0.00014987,2]
[360773159,1747006244599,-496.19400945,0.00014987,2]
[360773160,1747006244608,-366.98658499,0.00014987,2]
[360773161,1747006244617,-400.0,0.00014987,2]
[360773162,1747006244626,-400.0,0.00014987,2]
[360773163,1747006244635,-400.0,0.00014987,2]
[360773164,1747006244645,-383.87986541,0.00014987,2]
[360773165,1747006244654,-400.0,0.00014987,2]
[360773166,1747006244663,-2085.14,0.00014987,2]
[360773167,1747006244672,-2085.14,0.00014987,2]
[360773168,1747006244682,-400.0,0.00014987,2]
[360773169,1747006244692,-400.0,0.00014987,2]
[360773170,1747006244702,-400.0,0.00014987,2]
[360773171,1747006244711,-400.0,0.00014987,2]
[360773172,1747006244721,-400.0,0.00014987,2]
[360773173,1747006244730,-400.0,0.00014987,2]
[360773175,1747006244739,-400.0,0.00014987,2]
[360773177,1747006244749,-400.0,0.00014987,2]
[360773180,1747006244771,-400.0,0.00014987,2]
[360773181,1747006244780,-400.0,0.00014987,2]
[360773183,1747006244789,-164.49926726,0.00014987,2]
[360773184,1747006244805,-400.0,0.00014987,2]
[360773185,1747006244819,-791.23,0.00014987,2]
[360773186,1747006244828,-521.52605585,0.00014987,2]
[360773187,1747006244838,-1390.51,0.00014987,2]
[360773188,1747006244848,-1390.51,0.00014987,2]
[360773189,1747006244859,-400.0,0.00014987,2]
[360773190,1747006244869,-1390.51,0.00014987,2]
[360773191,1747006244879,-400.0,0.00014987,2]
[360773192,1747006244890,-400.0,0.00014987,2]
[360773193,1747006244900,-400.0,0.00014987,2]
[360773194,1747006244910,-415.84294251,0.00014987,2]
[360773195,1747006244920,-1397.89,0.00014987,2]
[360773196,1747006244930,-400.0,0.00014987,2]
[360773197,1747006244939,-1397.89,0.00014987,2]
[360773198,1747006244951,-1397.89,0.00014987,2]
[360773199,1747006244960,-400.0,0.00014987,2]
[360773200,1747006244971,-835.4,0.00014987,2]
[360773201,1747006244987,-474.13368327,0.00014987,2]
[360773202,1747006244997,-835.4,0.00014987,2]
[360773203,1747006245007,-835.4,0.00014987,2]
[360773204,1747006245019,-5283.5,0.00014987,2]
[360773205,1747006245029,-5283.5,0.00014987,2]
[360773206,1747006245038,-745.06,0.00014987,2]
[360773207,1747006245048,-400.0,0.00014987,2]
[360773208,1747006245058,-500.0,0.00014987,2]
[360773209,1747006245069,-2607.56,0.00014987,2]
[360773210,1747006245079,-400.0,0.00014987,2]
[360773211,1747006245088,-400.0,0.00014987,2]
[360773212,1747006245100,-3063.95,0.00014987,2]
[360773213,1747006245110,-400.0,0.00014987,2]
[360773214,1747006245120,-400.0,0.00014987,2]
[360773215,1747006245129,-400.0,0.00014987,2]
[360773216,1747006245139,-3063.95,0.00014987,2]
[360773217,1747006245148,-400.0,0.00014987,2]
[360773218,1747006245158,-400.0,0.00014987,2]
[360773219,1747006245167,-3063.95,0.00014987,2]
[360773220,1747006245177,-400.0,0.00014987,2]
[360773221,1747006245187,-400.0,0.00014987,2]
[360773222,1747006245202,-400.0,0.00014987,2]
[360773223,1747006245212,-400.0,0.00014987,2]
[360773224,1747006245222,-400.0,0.00014987,2]
[360773225,1747006245232,-496.08272906,0.00014987,2]
[360773226,1747006245242,-1192.04,0.00014987,2]
[360773227,1747006245251,-2628.29,0.00014987,2]
[360773228,1747006245261,-1595.5,0.00014987,2]
[360773229,1747006245271,-1595.5,0.00014987,2]
[360773230,1747006245281,-1595.5,0.00014987,2]
[360773231,1747006245292,-400.0,0.00014987,2]
[360773232,1747006245302,-400.0,0.00014987,2]
[360773233,1747006245312,-400.0,0.00014987,2]
[360773234,1747006245322,-400.0,0.00014987,2]
[360773235,1747006245332,-400.0,0.00014987,2]
[360773236,1747006245342,-400.0,0.00014987,2]
[360773237,1747006245352,-927.33,0.00014987,2]
[360773238,1747006245361,-927.33,0.00014987,2]
[360773239,1747006245370,-552.87,0.00014987,2]
[360773240,1747006245380,-2112.6,0.00014987,2]
[360773241,1747006245390,-2112.6,0.00014987,2]
[360773242,1747006245400,-2112.6,0.00014987,2]
[360773243,1747006245410,-1852.24,0.00014987,2]
[360773244,1747006245420,-506.29949374,0.00014987,2]
[360773245,1747006245430,-1190.67,0.00014987,2]
[360773246,1747006245440,-1190.67,0.00014987,2]
[360773247,1747006245455,-2293.3,0.00014987,2]
[360773248,1747006245465,-400.0,0.00014987,2]
[360773249,1747006245475,-400.0,0.00014987,2]
[360773250,1747006245484,-2293.3,0.00014987,2]
[360773251,1747006245494,-400.0,0.00014987,2]
[360773252,1747006245504,-1190.67,0.00014987,2]
[360773253,1747006245514,-450.0,0.00014987,2]
[360773254,1747006245524,-400.0,0.00014987,2]
[360773255,1747006245533,-525.78718233,0.00014987,2]
[360773256,1747006245543,-400.0,0.00014987,2]
[360773257,1747006245552,-4324.23,0.00014987,2]
[360773258,1747006245562,-400.0,0.00014987,2]
[360773259,1747006245571,-400.0,0.00014987,2]
[360773260,1747006245581,-400.0,0.00014987,2]
[360773261,1747006245591,-772.67,0.00014987,2]
[360773262,1747006245601,-692.98,0.00014987,2]
[360773263,1747006245612,-772.67,0.00014987,2]
[360773264,1747006245623,-692.98,0.00014987,2]
[360773265,1747006245632,-400.0,0.00014987,2]
[360773266,1747006245642,-772.67,0.00014987,2]
[360773267,1747006245652,-400.0,0.00014987,2]
[360773268,1747006245662,-504.86388255,0.00014987,2]
[360773269,1747006245672,-400.0,0.00014987,2]
[360773270,1747006245682,-160.05029366,0.00014987,2]
[360773271,1747006245694,-444.49,0.00014987,2]
[360773272,1747006245704,-400.0,0.00014987,2]
[360773273,1747006245714,-400.0,0.00014987,2]
[360773274,1747006245724,-400.0,0.00014987,2]
[360773275,1747006245734,-300.0,0.00014987,2]
[360773276,1747006245743,-400.0,0.00014987,2]
[360773277,1747006245753,-400.0,0.00014987,2]
[360773278,1747006245762,-400.0,0.00014987,2]
[360773279,1747006245772,-400.0,0.00014987,2]
[360773280,1747006245782,-400.0,0.00014987,2]
[360773281,1747006245792,-400.0,0.00014987,2]
[360773282,1747006245801,-318.29964988,0.00014987,2]
[360773283,1747006245811,-213.34,0.00014987,2]
[360773284,1747006245820,-400.0,0.00014987,2]
[360773285,1747006245830,-400.0,0.00014987,2]
[360773286,1747006245839,-400.0,0.00014987,2]
[360773287,1747006245850,-400.0,0.00014987,2]
[360773288,1747006245859,-400.0,0.00014987,2]
[360773289,1747006245869,-400.0,0.00014987,2]
[360773290,1747006245878,-670.85,0.00014987,2]
[360773291,1747006245888,-627.8,0.00014987,2]
[360773292,1747006245898,-627.8,0.00014987,2]
[360773293,1747006245907,-400.0,0.00014987,2]
[360773294,1747006245917,-2284.03,0.00014987,2]
[360773295,1747006245927,-400.0,0.00014987,2]
[360773296,1747006245936,-164.51938512,0.00014987,2]
[360773297,1747006245947,-4245.54,0.00014987,2]
[360773298,1747006245957,-4245.54,0.00014987,2]
[360773300,1747006245966,-4245.54,0.00014987,2]
[360773301,1747006245978,-499.91116385,0.00014987,2]
[360773302,1747006245991,-466.33,0.00014987,2]
[360773303,1747006246001,-466.33,0.00014987,2]
[360773304,1747006246011,-400.0,0.00014987,2]
[360773305,1747006246022,-400.0,0.00014987,2]
[360773306,1747006246031,-401.69765442,0.00014987,2]
[360773307,1747006246041,-400.0,0.00014987,2]
[360773308,1747006246050,-400.0,0.00014987,2]
[360773309,1747006246062,-400.0,0.00014987,2]
[360773310,1747006246072,-151.57300527,0.00014987,2]
[360773311,1747006246082,-1454.65,0.00014987,2]
[360773312,1747006246091,-1454.65,0.00014987,2]
[360773313,1747006246101,-644.17,0.00014987,2]
[360773314,1747006246110,-1816.25,0.00014987,2]
[360773315,1747006246120,-2120.04,0.00014987,2]
[360773316,1747006246129,-1454.65,0.00014987,2]
[360773317,1747006246138,-644.17,0.00014987,2]
[360773318,1747006246148,-1816.25,0.00014987,2]
[360773319,1747006246157,-2120.04,0.00014987,2]
[360773320,1747006246167,-2120.04,0.00014987,2]
[360773321,1747006246176,-1816.25,0.00014987,2]
[360773322,1747006246186,-400.0,0.00014987,2]
[360773323,1747006246197,-2000.0,0.00014987,2]
[360773324,1747006246207,-400.0,0.00014987,2]
[360773325,1747006246216,-400.0,0.00014987,2]
[360773326,1747006246225,-1887.65,0.00014987,2]
[360773327,1747006246235,-208.26321372,0.00014987,2]
[360773328,1747006246244,-2422.37,0.00014987,2]
[360773329,1747006246253,-612.62,0.00014987,2]
[360773330,1747006246263,-400.0,0.00014987,2]
[360773331,1747006246272,-2422.37,0.00014987,2]
[360773332,1747006246281,-2422.37,0.00014987,2]
[360773333,1747006246290,-1572.73,0.00014987,2]
[360773334,1747006246300,-1572.73,0.00014987,2]
[360773335,1747006246310,-1572.73,0.00014987,2]
[360773336,1747006246319,-400.0,0.00014987,2]
[360773337,1747006246329,-12760.11,0.00014987,2]
[360773338,1747006246338,-12760.11,0.00014987,2]
[360773339,1747006246348,-400.0,0.00014987,2]
[360773340,1747006246357,-681.43,0.00014987,2]
[360773341,1747006246366,-934.44,0.00014987,2]
[360773342,1747006246376,-934.44,0.00014987,2]
[360773343,1747006246386,-3520.19,0.00014987,2]
[360773344,1747006246395,-934.44,0.00014987,2]
[360773345,1747006246405,-3520.19,0.00014987,2]
[360773346,1747006246415,-5970.69,0.00014987,2]
[360773347,1747006246424,-5970.69,0.00014987,2]
[360773348,1747006246434,-5970.69,0.00014987,2]
[360773349,1747006246445,-3281.17,0.00014987,2]
[360773350,1747006246455,-459.34,0.00014987,2]
[360773351,1747006246464,-5276.7,0.00014987,2]
[360773352,1747006246474,-5276.7,0.00014987,2]
[360773353,1747006246483,-1179.9,0.00014987,2]
[360773354,1747006246493,-1179.9,0.00014987,2]
[360773355,1747006246503,-1179.9,0.00014987,2]
[360773356,1747006246512,-796.85,0.00014987,2]
[360773357,1747006246522,-400.0,0.00014987,2]
[360773359,1747006246532,-160.949755,0.00014987,2]
[360773361,1747006246542,-796.85,0.00014987,2]
[360773363,1747006246553,-400.0,0.00014987,2]
[360773365,1747006246563,-796.85,0.00014987,2]
[360773366,1747006246572,-400.0,0.00014987,2]
[360773367,1747006246582,-4156.62,0.00014987,2]
[360773368,1747006246591,-4156.62,0.00014987,2]
[360773369,1747006246602,-796.85,0.00014987,2]
[360773370,1747006246611,-1238.05,0.00014987,2]
[360773371,1747006246621,-4156.62,0.00014987,2]
[360773372,1747006246631,-400.0,0.00014987,2]
[360773373,1747006246640,-401.13684412,0.00014987,2]
[360773374,1747006246650,-400.0,0.00014987,2]
[360773375,1747006246660,-400.0,0.00014987,2]
[360773376,1747006246670,-400.0,0.00014987,2]
[360773377,1747006246679,-400.0,0.00014987,2]
[360773378,1747006246689,-4363.6,0.00014987,2]
[360773379,1747006246701,-4363.6,0.00014987,2]
[360773380,1747006246711,-4363.6,0.00014987,2]
[360773381,1747006246720,-400.0,0.00014987,2]
[360773382,1747006246731,-400.0,0.00014987,2]
[360773383,1747006246741,-400.0,0.00014987,2]
[360773384,1747006246751,-208.70974046,0.00014987,2]
[360773386,1747006246761,-364.48105919,0.00014987,2]
[360773387,1747006246770,-1548.54,0.00014987,2]
[360773388,1747006246780,-1548.54,0.00014987,2]
[360773389,1747006246790,-1748.54,0.00014987,2]
[360773390,1747006246801,-400.0,0.00014987,2]
[360773391,1747006246811,-500.0,0.00014987,2]
[360773392,1747006246822,-1748.54,0.00014987,2]
[360773393,1747006246832,-400.0,0.00014987,2]
[360773394,1747006247076,-445.61515128,0.00014987,2]
[360773395,1747006247088,-1748.54,0.00014987,2]
[360773396,1747006247098,-400.0,0.00014987,2]
[360773397,1747006247107,-400.0,0.00014987,2]
[360773398,1747006247117,-592.76,0.00014987,2]
[360773399,1747006247126,-400.0,0.00014987,2]
[360773400,1747006247135,-296.55509389,0.00014987,2]
[360773401,1747006247145,-400.0,0.00014987,2]
[360773402,1747006247155,-1153.65,0.00014987,2]
[360773403,1747006247164,-400.0,0.00014987,2]
[360773404,1747006247173,-1153.65,0.00014987,2]